Workbook

Sheet front_nd

Sheet Hora clinica ND
R1: TRUE
B4: Quanto custa sua hora clinica para ter lucratividade ?
R5: Tutorial
B7: 1. FATURAMENTO | C7: =SUM(C8:C11) -> 35000 | D7: 1 | F7: Ponto de equilibrio | J7: O ponto de equilíbrio permite você saber qual o faturamento mensal mínimo para cobrir despesas fixas e variáveis. | S7: Insira as informações do seu consultório nas células lilás claro
B8: á vista | C8: 30000 | D8: =IFERROR(C8/$C$7,0) -> 0.8571428571 | F8: =C13+C24 -> 9330
B9: recebimentos | C9: 5000 | D9: =IFERROR(C9/$C$7,0) -> 0.1428571429
D10: 0 | F10: Lucro desejado mensal | J10: Insira o lucro desejado, ou seja, a rentabilidade mensal que você deseja ter em sua clínica.
D11: 0
B13: 2. CUSTO VARIÁVEL | C13: =SUM(C14:C20) -> 4550 | D13: =IFERROR(C13/$C$7,0) -> 0.13 | F13: P.E.+ lucro desejado | J13: Este resultado mostra qual deverá ser o seu faturamento mensal mínimo para cobrir as despesas e gerar o lucro desejado.
B14: dental | C14: 1100 | D14: =IFERROR(C14/$C$13,0) -> 0.2417582418 | F14: =F8+F11 -> 9330
B15: protético | C15: 1800 | D15: =IFERROR(C15/$C$13,0) -> 0.3956043956
B16: impostos | C16: 750 | D16: 0.1648351648 | F16: Hora Clinica | J16: Custo da hora clínica para pagar suas despesas mensais (considerando 20 dias úteis, 8hs por dia)
B17: comissão | C17: 500 | D17: 0.1098901099 | F17: =IFERROR(F8/20/8,0) -> 58.3125
B18: % retenção cartão | C18: 400 | D18: 0.08791208791
B19: Outros | D19: 0 | F19: Hora Clinica + lucro | J19: Custo da hora clínica para pagar suas despesas mensais e gerar o lucro desejado mensal (considerando 20 dias úteis, 8hs por dia)
D20: 0 | F20: =IFERROR(F14/20/8,0) -> 58.3125
B22: 3. LUCRO BRUTO | C22: =SUM(C7-C13) -> 30450 | D22: =IFERROR(C22/$C$7,0) -> 0.87
B24: 4. CUSTO FIXO | C24: =SUM(C25:C40) -> 4780 | D24: =IFERROR(C24/$C$7,0) -> 0.1365714286
B25: funcionários | C25: 1800 | D25: =IFERROR(C25/$C$24,0) -> 0.3765690377
B26: aluguel | C26: 660 | D26: =IFERROR(C26/$C$24,0) -> 0.1380753138
B27: pró-labore | C27: 1000 | D27: 0.2092050209
B28: água | C28: 70 | D28: 0.01464435146
B29: luz | C29: 350 | D29: 0.07322175732
B30: telefone/internet | C30: 200 | D30: 0.04184100418
B31: celular | C31: 80 | D31: 0.01673640167
B32: manuteção equipamento | C32: 120 | D32: 0.02510460251
B33: seguro | D33: 0
B34: segurança | C34: 80 | D34: 0.01673640167
B35: taxa de lixo | C35: 150 | D35: 0.03138075314
B36: serviço de terceiros | C36: 40 | D36: 0.008368200837
B37: material expediente | C37: 80 | D37: 0.01673640167
B38: lanches/café | C38: 150 | D38: 0.03138075314
B39: Outros | D39: 0
D40: 0
B41: 5. LUCRO LIQUIDO | C41: =SUM(C22-C24) -> 25670 | D41: =SUM(C41/C7) -> 0.7334285714

Sheet front_nd (2)
